fUST/lending_fUST_20250615
["ID","MTS","AMOUNT","RATE_DAILY","PERIOD"]
[365816347,1749934242502,-460.0,0.00022739,4]
[365816348,1749934242512,-460.0,0.00022739,4]
[365816349,1749934242521,-150.0,0.00022739,4]
[365816350,1749934242531,-1464.91,0.00022739,4]
[365816351,1749934242541,-460.0,0.00022739,4]
[365816352,1749934242550,-460.0,0.00022739,4]
[365816353,1749934242559,-460.0,0.00022739,4]
[365816354,1749934242568,-280.0,0.00022739,4]
[365816355,1749934242577,-460.0,0.00022739,4]
[365816357,1749934242587,-460.0,0.00022739,4]
[365816359,1749934242597,-460.0,0.00022739,4]
[365816360,1749934242607,-490.17,0.00022739,4]
[365816361,1749934242616,-460.0,0.00022739,4]
[365816362,1749934242626,-1205.22,0.00022739,4]
[365816363,1749934242635,-460.0,0.00022739,4]
[365816365,1749934242645,-460.0,0.00022739,4]
[365816367,1749934242654,-460.0,0.00022739,4]
[365816368,1749934242664,-460.0,0.00022739,4]
[365816369,1749934242673,-460.0,0.00022739,4]
[365816370,1749934242683,-460.0,0.00022739,4]
[365816371,1749934242693,-802.02,0.00022739,4]
[365816372,1749934242703,-945.86,0.00022739,4]
[365816373,1749934242712,-460.0,0.00022739,4]
[365816374,1749934242721,-669.6,0.00022739,4]
[365816375,1749934242730,-460.0,0.00022739,4]
[365816376,1749934242740,-460.0,0.00022739,4]
[365816377,1749934242749,-2627.04,0.00022739,4]
[365816378,1749934242759,-1021.71,0.00022739,4]
[365816379,1749934242769,-560.44,0.00022739,4]
[365816380,1749934242779,-460.0,0.00022739,4]
[365816381,1749934242790,-460.0,0.00022739,4]
[365816382,1749934242799,-488.32,0.00022739,4]
[365816383,1749934242808,-1030.73,0.00022739,4]
[365816384,1749934242818,-668.74,0.00022739,4]
[365816385,1749934242827,-460.0,0.00022739,4]
[365816386,1749934242837,-460.0,0.00022739,4]
[365816387,1749934242847,-460.0,0.00022739,4]
[365816388,1749934242856,-460.0,0.00022739,4]
[365816389,1749934242865,-935.09,0.00022739,4]
[365816390,1749934242875,-2674.8,0.00022739,4]
[365816391,1749934242884,-620.78,0.00022739,4]
[365816392,1749934242893,-465.93,0.00022739,2]
[365816393,1749934242903,-2139.5,0.00022739,4]
[365816394,1749934242912,-460.0,0.00022739,4]
[365816395,1749934242921,-2853.24,0.00022739,4]
[365816396,1749934242930,-1173.82,0.00022739,4]
[365816397,1749934242940,-460.0,0.00022739,4]
[365816399,1749934242950,-460.0,0.00022739,4]
[365816400,1749934242959,-460.0,0.00022739,4]
[365816402,1749934242968,-2997.29,0.00022739,4]
[365816403,1749934242977,-400.0,0.00022739,4]
[365816404,1749934242986,-460.0,0.00022739,4]
[365816405,1749934242996,-615.87,0.00022739,4]
[365816406,1749934243006,-2893.63,0.00022739,4]
[365816407,1749934243015,-460.0,0.00022739,4]
[365816408,1749934243025,-460.0,0.00022739,4]
[365816409,1749934243034,-460.0,0.00022739,4]
[365816410,1749934243043,-430.0,0.00022739,4]
[365816411,1749934243053,-658.29,0.00022739,4]
[365816412,1749934243063,-1456.51,0.00022739,4]
[365816413,1749934243073,-460.0,0.00022739,4]
[365816414,1749934243083,-1925.14,0.00022739,4]
[365816415,1749934243092,-699.72,0.00022739,4]
[365816416,1749934243210,-1003.24,0.00022739,4]
[365816417,1749934243220,-1945.63,0.00022739,4]
[365816418,1749934243234,-460.0,0.00022739,4]
[365816419,1749934243243,-460.0,0.00022739,4]
[365816420,1749934243252,-460.0,0.00022739,4]
[365816421,1749934243262,-460.0,0.00022739,4]
[365816422,1749934243271,-1359.09,0.00022739,4]
[365816423,1749934243280,-1605.84,0.00022739,4]
[365816424,1749934243289,-987.95,0.00022739,4]
[365816425,1749934243299,-460.0,0.00022739,4]
[365816426,1749934243308,-460.0,0.00022739,4]
[365816427,1749934243318,-460.0,0.00022739,4]
[365816428,1749934243326,-460.0,0.00022739,4]
[365816429,1749934243335,-3088.09,0.00022739,4]
[365816430,1749934243344,-1035.41086188,0.00022831,8]
[365816431,1749934243354,-2622.73,0.00022863,2]
[365816432,1749934243365,-425.09696969,0.00022892,2]
[365816433,1749934243376,-1035.41086188,0.00022934,8]
[365816434,1749934243385,-161.70263067,0.00022949,2]
[365816435,1749934243396,-206.733974,0.00023013,7]
[365816436,1749934243406,-206.733974,0.00023013,7]
[365816437,1749934243417,-460.0,0.00023013,4]
[365816438,1749934243428,-460.0,0.00023013,4]
[365816439,1749934243437,-460.0,0.00023013,4]
[365816440,1749934243447,-1464.91,0.00023013,4]
[365816441,1749934243456,-460.0,0.00023013,4]
[365816442,1749934243466,-460.0,0.00023013,4]
[365816443,1749934243475,-460.0,0.00023013,4]
[365816444,1749934243484,-460.0,0.00023013,4]
[365816445,1749934243494,-460.0,0.00023013,4]
[365816446,1749934243503,-490.17,0.00023013,4]
[365816447,1749934243512,-460.0,0.00023013,4]
[365816448,1749934243521,-1205.22,0.00023013,4]
[365816449,1749934243530,-460.0,0.00023013,4]
[365816450,1749934243539,-460.0,0.00023013,4]
[365816451,1749934243549,-460.0,0.00023013,4]
[365816452,1749934243559,-460.0,0.00023013,4]
[365816453,1749934243569,-460.0,0.00023013,4]
[365816454,1749934243579,-802.02,0.00023013,4]
[365816455,1749934243589,-945.86,0.00023013,4]
[365816456,1749934243599,-460.0,0.00023013,4]
[365816457,1749934243609,-669.6,0.00023013,4]
[365816458,1749934243618,-460.0,0.00023013,4]
[365816459,1749934243629,-2627.04,0.00023013,4]
[365816460,1749934243638,-1021.71,0.00023013,4]
[365816461,1749934243649,-460.0,0.00023013,4]
[365816462,1749934243658,-488.32,0.00023013,4]
[365816463,1749934243667,-1030.73,0.00023013,4]
[365816464,1749934243677,-668.74,0.00023013,4]
[365816465,1749934243687,-460.0,0.00023013,4]
[365816466,1749934243696,-460.0,0.00023013,4]
[365816467,1749934243706,-460.0,0.00023013,4]
[365816468,1749934243715,-460.0,0.00023013,4]
[365816469,1749934243725,-935.09,0.00023013,4]
[365816470,1749934243734,-2674.8,0.00023013,4]
[365816471,1749934243743,-620.78,0.00023013,4]
[365816472,1749934243753,-465.93,0.00023013,2]
[365816473,1749934243763,-2139.5,0.00023013,4]
[365816474,1749934243772,-460.0,0.00023013,4]
[365816475,1749934243782,-2853.24,0.00023013,4]
[365816476,1749934243791,-1173.82,0.00023013,4]
[365816477,1749934243802,-460.0,0.00023013,4]
[365816478,1749934243811,-460.0,0.00023013,4]
[365816479,1749934243821,-2997.29,0.00023013,4]
[365816480,1749934243830,-460.0,0.00023013,4]
[365816481,1749934243839,-615.87,0.00023013,4]
[365816482,1749934243848,-2893.63,0.00023013,4]
[365816483,1749934243857,-460.0,0.00023013,4]
[365816484,1749934243866,-494.46198256,0.00023013,4]
[365816485,1749934243875,-460.0,0.00023013,4]
[365816486,1749934243884,-658.29,0.00023013,4]
[365816487,1749934243893,-1456.51,0.00023013,4]
[365816488,1749934243903,-460.0,0.00023013,4]
[365816489,1749934243912,-1925.14,0.00023013,4]
[365816490,1749934243921,-699.72,0.00023013,4]
[365816491,1749934243931,-1003.24,0.00023013,4]
[365816492,1749934243940,-1945.63,0.00023013,4]
[365816493,1749934243950,-460.0,0.00023013,4]
[365816494,1749934243959,-460.0,0.00023013,4]
[365816495,1749934243968,-460.0,0.00023013,4]
[365816496,1749934243977,-460.0,0.00023013,4]
[365816497,1749934243987,-1359.09,0.00023013,4]
[365816498,1749934243996,-1605.84,0.00023013,4]
[365816499,1749934244006,-987.95,0.00023013,4]
[365816500,1749934244015,-460.0,0.00023013,4]
[365816501,1749934244024,-460.0,0.00023013,4]
[365816502,1749934244034,-300.95216294,0.00023013,4]
[365816503,1749934244043,-3088.09,0.00023013,4]
[365816504,1749934244053,-460.0,0.00023013,4]
[365816505,1749934244062,-1035.41086188,0.00023038,8]
[365816506,1749934244071,-425.09696969,0.00023047,2]
[365816507,1749934244080,-399.78354313,0.00023067,2]
[365816508,1749934244090,-5000.0,0.00023086,2]
[365816509,1749934244099,-1773.78,0.000231,7]
[365816510,1749934244109,-1035.41086188,0.00023141,8]
[365816511,1749934244119,-500.0,0.000232,2]
[365816512,1749934244128,-1035.41086188,0.00023245,8]
[365816513,1749934244138,-1500.0,0.00023268,2]
[365816514,1749934244147,-460.0,0.00023287,4]
[365816515,1749934244157,-460.0,0.00023287,4]
[365816516,1749934244166,-460.0,0.00023287,4]
[365816517,1749934244176,-1464.91,0.00023287,4]
[365816518,1749934244185,-460.0,0.00023287,4]
[365816519,1749934244194,-460.0,0.00023287,4]
[365816520,1749934244203,-460.0,0.00023287,4]
[365816521,1749934244213,-460.0,0.00023287,4]
[365816522,1749934244223,-460.0,0.00023287,4]
[365816523,1749934244239,-490.17,0.00023287,4]
[365816524,1749934244249,-182.40805665,0.00023287,4]
[365816525,1749934244258,-1205.22,0.00023287,4]
[365816526,1749934244268,-460.0,0.00023287,4]
[365816527,1749934244277,-460.0,0.00023287,4]
[365816528,1749934244287,-460.0,0.00023287,4]
[365816529,1749934244297,-460.0,0.00023287,4]
[365816530,1749934244307,-802.02,0.00023287,4]
[365816531,1749934244316,-945.86,0.00023287,4]
[365816532,1749934244325,-460.0,0.00023287,4]
[365816533,1749934244334,-669.6,0.00023287,4]
[365816534,1749934244343,-460.0,0.00023287,4]
[365816535,1749934244352,-2627.04,0.00023287,4]
[365816536,1749934244361,-1021.71,0.00023287,4]
[365816537,1749934244370,-460.0,0.00023287,4]
[365816538,1749934244379,-488.32,0.00023287,4]
[365816539,1749934244390,-1030.73,0.00023287,4]
[365816540,1749934244399,-668.74,0.00023287,4]
[365816541,1749934244408,-270.37578395,0.00023287,4]
[365816542,1749934244417,-460.0,0.00023287,4]
[365816543,1749934244426,-460.0,0.00023287,4]
[365816544,1749934244435,-447.0789143,0.00023287,4]
[365816545,1749934244444,-935.09,0.00023287,4]
[365816546,1749934244453,-2674.8,0.00023287,4]
[365816547,1749934244462,-620.78,0.00023287,4]
[365816548,1749934244471,-465.93,0.00023287,2]
[365816549,1749934244480,-2139.5,0.00023287,4]
[365816550,1749934244489,-460.0,0.00023287,4]
[365816551,1749934244498,-2853.24,0.00023287,4]
[365816552,1749934244507,-1173.82,0.00023287,4]
[365816553,1749934244516,-545.31676408,0.00023287,4]
[365816554,1749934244525,-460.0,0.00023287,4]
[365816555,1749934244534,-2997.29,0.00023287,4]
[365816556,1749934244543,-460.0,0.00023287,4]
[365816557,1749934244553,-615.87,0.00023287,4]
[365816558,1749934244562,-2893.63,0.00023287,4]
[365816559,1749934244573,-460.0,0.00023287,4]
[365816560,1749934244586,-460.0,0.00023287,4]
[365816561,1749934244599,-658.29,0.00023287,4]
[365816562,1749934244611,-1456.51,0.00023287,4]
[365816563,1749934244624,-460.0,0.00023287,4]
[365816564,1749934244635,-1925.14,0.00023287,4]
[365816565,1749934244646,-699.72,0.00023287,4]
[365816566,1749934244659,-1003.24,0.00023287,4]
[365816567,1749934244670,-1945.63,0.00023287,4]
[365816568,1749934244682,-460.0,0.00023287,4]
[365816569,1749934244694,-460.0,0.00023287,4]
[365816570,1749934244707,-460.0,0.00023287,4]
[365816571,1749934244719,-460.0,0.00023287,4]
[365816572,1749934244730,-1359.09,0.00023287,4]
[365816573,1749934244743,-1605.84,0.00023287,4]
[365816574,1749934244756,-987.95,0.00023287,4]
[365816575,1749934244771,-460.0,0.00023287,4]
[365816576,1749934244783,-460.0,0.00023287,4]
[365816577,1749934244795,-3088.09,0.00023287,4]
[365816578,1749934244806,-158.8714084,0.00023342,2]
[365816579,1749934244817,-353.9875236,0.00023342,2]
[365816580,1749934244828,-1147.5719738,0.00023342,2]
[365816581,1749934244840,-153.0,0.00023342,2]
[365816582,1749934244852,-500.0,0.00023346,2]
[365816583,1749934244864,-1035.41086188,0.00023348,9]
[365816584,1749934244876,-206.733974,0.0002335,7]
[365816585,1749934244887,-206.733974,0.0002335,7]
[365816586,1749934244896,-500.0,0.000234,2]
[365816587,1749934244907,-229.82479369,0.00023428,2]
[365816588,1749934244919,-213.28201367,0.00023428,2]
[365816589,1749934244930,-424.40141186,0.00023428,2]
[365816590,1749934244942,-845.10789306,0.00023428,2]
[365816591,1749934244953,-724.0,0.00023451,4]
[365816592,1749934244965,-500.0,0.00023451,4]
[365816593,1749934244976,-151.0,0.00023451,4]
[365816594,1749934244989,-226.05021002,0.00023451,4]
[365816595,1749934245000,-271.13814479,0.00023451,4]
[365816596,1749934245013,-151.0,0.00023451,4]
[365816597,1749934245025,-193.34465452,0.00023451,4]
[365816598,1749934245036,-151.0,0.00023451,4]
[365816599,1749934245046,-287.63485949,0.00023451,4]
[365816600,1749934245056,-151.0,0.00023451,4]
[365816601,1749934245066,-151.38444775,0.00023451,4]
[365816602,1749934245076,-500.0,0.00023451,4]
[365816603,1749934245087,-151.0,0.00023451,4]
[365816604,1749934245099,-151.0,0.00023451,4]
[365816605,1749934245112,-500.0,0.00023451,4]
[365816606,1749934245124,-151.0,0.00023451,4]
[365816607,1749934245135,-151.0,0.00023451,2]
[365816608,1749934245145,-230.39526265,0.00023451,4]
[365816609,1749934245155,-213.02647967,0.00023451,4]
[365816610,1749934245166,-198.0,0.00023451,4]
[365816611,1749934245176,-253.29229518,0.00023451,4]
[365816612,1749934245189,-500.0,0.00023451,4]
[365816613,1749934245199,-500.0,0.00023451,4]
[365816614,1749934245209,-1035.41086188,0.00023452,9]
[365816615,1749934245220,-160.0,0.00023461,4]
[365816616,1749934245235,-724.0,0.00023478,4]
[365816617,1749934245246,-500.0,0.00023478,4]
[365816619,1749934245256,-182.90148304,0.00023478,4]
[365816620,1749934245267,-151.0,0.00023478,4]
[365816621,1749934245278,-500.0,0.00023478,4]
[365816622,1749934245289,-151.0,0.00023478,4]
[365816623,1749934245300,-151.0,0.00023478,4]
[365816624,1749934245312,-500.0,0.00023478,4]
[365816625,1749934245323,-151.0,0.00023478,4]
[365816626,1749934245334,-500.0,0.00023478,4]
[365816627,1749934245345,-500.0,0.00023478,4]
[365816628,1749934245355,-425.09696971,0.000235,2]
[365816629,1749934245366,-724.0,0.00023506,4]
[365816630,1749934245376,-500.0,0.00023506,4]
[365816631,1749934245387,-500.0,0.00023506,4]
[365816632,1749934245398,-151.0,0.00023506,4]
[365816633,1749934245408,-151.0,0.00023506,4]
[365816634,1749934245419,-500.0,0.00023506,4]
[365816635,1749934245430,-151.0,0.00023506,4]
[365816636,1749934245440,-500.0,0.00023506,4]
[365816637,1749934245451,-500.0,0.00023506,4]
[365816638,1749934245462,-1423.306195,0.0002352,3]
[365816639,1749934245473,-724.0,0.00023533,4]
[365816640,1749934245484,-500.0,0.00023533,4]
[365816641,1749934245494,-500.0,0.00023533,4]
[365816642,1749934245505,-151.0,0.00023533,4]
[365816643,1749934245515,-198.0,0.00023533,4]
[365816644,1749934245526,-500.0,0.00023533,4]
[365816645,1749934245537,-500.0,0.00023533,4]
[365816646,1749934245547,-500.0,0.00023533,4]
[365816647,1749934245559,-1035.41086188,0.00023555,9]
[365816648,1749934245570,-724.0,0.00023561,4]
[365816649,1749934245580,-500.0,0.00023561,4]
[365816650,1749934245592,-500.0,0.00023561,4]
[365816651,1749934245603,-205.80618261,0.00023561,4]
[365816652,1749934245614,-500.0,0.00023561,4]
[365816653,1749934245625,-500.0,0.00023561,4]
[365816654,1749934245635,-500.0,0.00023561,4]
[365816655,1749934245647,-182.44216,0.00023561,7]
[365816656,1749934245657,-182.44216,0.00023561,7]
[365816657,1749934245668,-151.0,0.00023561,7]
[365816658,1749934245679,-460.0,0.00023561,4]
[365816659,1749934245689,-460.0,0.00023561,4]
[365816660,1749934245700,-588.6292932,0.00023561,4]
[365816661,1749934245710,-1464.91,0.00023561,4]
[365816662,1749934245721,-460.0,0.00023561,4]
[365816663,1749934245732,-460.0,0.00023561,4]
[365816664,1749934245743,-460.0,0.00023561,4]
[365816665,1749934245754,-460.0,0.00023561,4]
[365816666,1749934245764,-460.0,0.00023561,4]
[365816667,1749934245775,-490.17,0.00023561,4]
[365816668,1749934245787,-1205.22,0.00023561,4]
[365816669,1749934245798,-460.0,0.00023561,4]
[365816670,1749934245809,-460.0,0.00023561,4]
[365816671,1749934245820,-460.0,0.00023561,4]
[365816672,1749934245831,-460.0,0.00023561,4]
[365816673,1749934245841,-802.02,0.00023561,4]
[365816674,1749934245852,-945.86,0.00023561,4]
[365816675,1749934245863,-460.0,0.00023561,4]
[365816676,1749934245874,-669.6,0.00023561,4]
[365816677,1749934245885,-2627.04,0.00023561,4]
[365816678,1749934245895,-1021.71,0.00023561,4]
[365816679,1749934245906,-460.0,0.00023561,4]
[365816680,1749934245916,-488.32,0.00023561,4]
[365816681,1749934245927,-1030.73,0.00023561,4]
[365816682,1749934245937,-668.74,0.00023561,4]
[365816683,1749934245948,-460.0,0.00023561,4]
[365816684,1749934245958,-460.0,0.00023561,4]
[365816685,1749934245969,-935.09,0.00023561,4]
[365816686,1749934245980,-2674.8,0.00023561,4]
[365816687,1749934245991,-620.78,0.00023561,4]
[365816688,1749934246001,-465.93,0.00023561,2]
[365816690,1749934246012,-2139.5,0.00023561,4]
[365816692,1749934246023,-460.0,0.00023561,4]
[365816694,1749934246034,-2853.24,0.00023561,4]
[365816695,1749934246045,-1173.82,0.00023561,4]
[365816696,1749934246056,-460.0,0.00023561,4]
[365816697,1749934246067,-2997.29,0.00023561,4]
[365816698,1749934246078,-460.0,0.00023561,4]
[365816699,1749934246090,-615.87,0.00023561,4]
[365816700,1749934246101,-2893.63,0.00023561,4]
[365816701,1749934246268,-460.0,0.00023561,4]
[365816702,1749934246279,-460.0,0.00023561,4]
[365816703,1749934246290,-658.29,0.00023561,4]
[365816704,1749934246300,-1456.51,0.00023561,4]
[365816705,1749934246310,-311.11481644,0.00023561,4]
[365816706,1749934246320,-1925.14,0.00023561,4]
[365816707,1749934246329,-699.72,0.00023561,4]
[365816708,1749934246338,-1003.24,0.00023561,4]
[365816709,1749934246347,-1945.63,0.00023561,4]
[365816710,1749934246356,-460.0,0.00023561,4]
[365816711,1749934246365,-460.0,0.00023561,4]
[365816712,1749934246374,-460.0,0.00023561,4]
[365816713,1749934246383,-460.0,0.00023561,4]
[365816714,1749934246392,-1359.09,0.00023561,4]
[365816715,1749934246401,-1605.84,0.00023561,4]
[365816716,1749934246410,-987.95,0.00023561,4]
[365816717,1749934246419,-253.13753151,0.00023561,4]
[365816718,1749934246428,-460.0,0.00023561,4]
[365816719,1749934246438,-333.56436477,0.00023573,2]
[365816720,1749934246447,-724.0,0.00023588,4]
[365816721,1749934246456,-500.0,0.00023588,4]
[365816722,1749934246465,-151.0,0.00023588,4]
[365816723,1749934246475,-500.0,0.00023588,4]
[365816724,1749934246484,-500.0,0.00023588,4]
[365816725,1749934246493,-160.0,0.000236,3]
[365816726,1749934246502,-725.55,0.000236,7]
[365816727,1749934246511,-845.10789306,0.000236,3]
[365816728,1749934246520,-12533.30537164,0.000236,3]
[365816729,1749934246529,-229.82479369,0.000236,3]
[365816730,1749934246541,-160.0,0.000236,3]
[365816731,1749934246550,-835.41710878,0.000236,3]
[365816732,1749934246559,-213.28201367,0.000236,3]
[365816733,1749934246569,-424.40141186,0.000236,3]
[365816734,1749934246578,-800.0,0.00023609,2]
[365816735,1749934246587,-724.0,0.00023615,4]
[365816736,1749934246597,-469.03557909,0.00023615,4]
[365816737,1749934246607,-500.0,0.00023615,4]
[365816738,1749934246617,-500.0,0.00023615,4]
[365816739,1749934246626,-6651.95637942,0.00023627,2]
[365816741,1749934246635,-5000.0,0.00023634,2]
[365816743,1749934246644,-724.0,0.00023643,4]
[365816744,1749934246653,-500.0,0.00023643,4]
[365816746,1749934246663,-1035.41086188,0.00023659,9]
[365816747,1749934246672,-724.0,0.0002367,4]
[365816749,1749934246682,-500.0,0.0002367,4]
[365816750,1749934246691,-724.0,0.00023698,4]
[365816752,1749934246701,-500.0,0.00023698,4]
[365816753,1749934246711,-724.0,0.00023725,4]
[365816754,1749934246720,-509.47087601,0.00023725,4]
[365816756,1749934246730,-964.0,0.00023745,2]
[365816757,1749934246739,-2160.0,0.00023745,2]
[365816758,1749934246748,-653.0,0.00023745,2]
[365816759,1749934246758,-405.0,0.00023745,2]
[365816760,1749934246767,-405.0,0.00023745,2]
[365816761,1749934246777,-724.0,0.00023752,4]
[365816762,1749934246790,-464.0,0.00023752,4]
[365816763,1749934246799,-5188.43487911,0.0002376,2]
[365816764,1749934246809,-1035.41086188,0.00023762,9]
[365816765,1749934246818,-500.0,0.00023773,2]
[365816766,1749934246828,-507.66297015,0.00023773,2]
[365816767,1749934246838,-500.0,0.00023773,2]
[365816768,1749934246847,-316.9201482,0.00023773,2]
[365816769,1749934246856,-500.0,0.00023773,2]
[365816770,1749934246866,-500.0,0.00023773,2]
[365816771,1749934246875,-500.0,0.00023773,2]
[365816772,1749934246884,-392.67113613,0.00023773,2]
[365816773,1749934246893,-600.0,0.00023773,2]
[365816774,1749934246903,-500.0,0.00023773,2]
[365816775,1749934246912,-724.0,0.0002378,4]
[365816776,1749934246922,-206.733974,0.0002378,7]
[365816777,1749934246931,-206.733974,0.0002378,7]
[365816778,1749934246940,-78883.97981234,0.00023788,2]
[365816779,1749934246950,-155.0,0.00023788,2]
[365816780,1749934246959,-151.0,0.000238,7]
[365816781,1749934246968,-180.4,0.000238,7]
[365816782,1749934246980,-151.0,0.000238,7]
[365816783,1749934246990,-2614.41,0.000238,2]
[365816784,1749934246999,-151.42789,0.000238,7]
[365816785,1749934247010,-32589.21408476,0.000238,2]
[365816786,1749934247019,-151.0,0.000238,10]
[365816787,1749934247029,-845.10789306,0.000238,7]
[365816788,1749934247040,-800.0,0.00023807,2]
[365816789,1749934247049,-161.70263067,0.00023807,2]
[365816790,1749934247059,-724.0,0.00023807,4]
[365816791,1749934247068,-1500.0,0.00023816,2]
[365816792,1749934247078,-724.0,0.00023835,4]
[365816793,1749934247087,-168.0,0.00023835,2]
[365816794,1749934247097,-151.0,0.00023835,7]
[365816795,1749934247106,-500.0,0.00023835,4]
[365816796,1749934247116,-216.07771858,0.00023835,4]
[365816797,1749934247125,-460.0,0.00023835,4]
[365816798,1749934247134,-460.0,0.00023835,4]
[365816799,1749934247143,-1464.91,0.00023835,4]
[365816800,1749934247153,-460.0,0.00023835,4]
[365816801,1749934247162,-404.19163398,0.00023835,4]
[365816802,1749934247171,-460.0,0.00023835,4]
[365816803,1749934247181,-460.0,0.00023835,4]
[365816804,1749934247191,-490.17,0.00023835,4]
[365816805,1749934247200,-1205.22,0.00023835,4]
[365816806,1749934247210,-460.0,0.00023835,4]
[365816807,1749934247219,-460.0,0.00023835,4]
[365816808,1749934247230,-460.0,0.00023835,4]
[365816809,1749934247239,-460.0,0.00023835,4]
[365816810,1749934247249,-802.02,0.00023835,4]
[365816811,1749934247258,-945.86,0.00023835,4]
[365816812,1749934247267,-460.0,0.00023835,4]
[365816813,1749934247277,-669.6,0.00023835,4]
[365816814,1749934247288,-2627.04,0.00023835,4]
[365816815,1749934247297,-1021.71,0.00023835,4]
[365816816,1749934247310,-460.0,0.00023835,4]
[365816817,1749934247321,-488.32,0.00023835,4]
[365816818,1749934247331,-1030.73,0.00023835,4]
[365816819,1749934247340,-668.74,0.00023835,4]
[365816820,1749934247350,-460.0,0.00023835,4]
[365816821,1749934247360,-460.0,0.00023835,4]
[365816822,1749934247369,-935.09,0.00023835,4]
[365816823,1749934247379,-2674.8,0.00023835,4]
[365816824,1749934247388,-620.78,0.00023835,4]
[365816825,1749934247398,-465.93,0.00023835,2]
[365816826,1749934247407,-2139.5,0.00023835,4]
[365816827,1749934247417,-460.0,0.00023835,4]
[365816828,1749934247427,-2853.24,0.00023835,4]
[365816829,1749934247436,-1173.82,0.00023835,4]
[365816830,1749934247446,-460.0,0.00023835,4]
[365816831,1749934247456,-2997.29,0.00023835,4]
[365816832,1749934247465,-460.0,0.00023835,4]
[365816833,1749934247475,-615.87,0.00023835,4]
[365816834,1749934247484,-2893.63,0.00023835,4]
[365816835,1749934247494,-460.0,0.00023835,4]
[365816836,1749934247503,-460.0,0.00023835,4]
[365816837,1749934247513,-658.29,0.00023835,4]
[365816838,1749934247523,-1456.51,0.00023835,4]
[365816839,1749934247532,-1925.14,0.00023835,4]
[365816840,1749934247542,-699.72,0.00023835,4]
[365816841,1749934247552,-1003.24,0.00023835,4]
[365816842,1749934247562,-1945.63,0.00023835,4]
[365816843,1749934247572,-460.0,0.00023835,4]
[365816844,1749934247582,-460.0,0.00023835,4]
[365816845,1749934247591,-460.0,0.00023835,4]
[365816846,1749934247601,-460.0,0.00023835,4]
[365816847,1749934247611,-1359.09,0.00023835,4]
[365816848,1749934247621,-1605.84,0.00023835,4]
[365816849,1749934247631,-987.95,0.00023835,4]
[365816850,1749934247640,-460.0,0.00023835,4]
[365816851,1749934247649,-317.0,0.00023847,3]
[365816852,1749934247659,-852.58,0.00023854,6]
[365816853,1749934247668,-800.0,0.00023859,2]
[365816854,1749934247678,-724.0,0.00023862,4]
[365816855,1749934247687,-500.0,0.00023862,4]
[365816856,1749934247698,-1035.41086188,0.00023866,10]
[365816857,1749934247708,-800.0,0.0002387,2]
[365816858,1749934247718,-724.0,0.00023889,4]
[365816859,1749934247728,-291.21606054,0.0002389,4]
[365816860,1749934247738,-326.46134904,0.0002389,2]
[365816861,1749934247747,-365.2762568,0.0002389,2]
[365816862,1749934247757,-365.2762568,0.0002389,2]